fUSD/lending_fUSD_20260202
["ID","MTS","AMOUNT","RATE_DAILY","PERIOD"]
[404295467,1770042641517,-500.0,0.00015473,2]
[404295468,1770042641526,-500.0,0.00015473,2]
[404295469,1770042641535,-500.0,0.00015473,2]
[404295470,1770042641544,-500.0,0.00015473,2]
[404295471,1770042641553,-500.0,0.00015473,2]
[404295472,1770042641562,-500.0,0.00015473,2]
[404295473,1770042641571,-500.0,0.00015473,2]
[404295474,1770042641580,-500.0,0.00015473,2]
[404295475,1770042641589,-500.0,0.00015473,2]
[404295476,1770042641599,-292.5328787,0.00015473,2]
[404295477,1770042641608,-500.0,0.00015473,2]
[404295478,1770042641618,-500.0,0.00015473,2]
[404295479,1770042641628,-500.0,0.00015473,2]
[404295480,1770042641637,-500.0,0.00015473,2]
[404295481,1770042641649,-500.0,0.00015473,2]
[404295482,1770042641659,-305.41786048,0.00015473,2]
[404295483,1770042641668,-500.0,0.00015473,2]
[404295484,1770042641678,-500.0,0.00015473,2]
[404295485,1770042641687,-501.6324076,0.00015473,2]
[404295486,1770042641702,-500.0,0.00015473,2]
[404295487,1770042641711,-500.0,0.00015473,2]
[404295488,1770042641720,-500.0,0.00015473,2]
[404295489,1770042641730,-500.0,0.00015473,2]
[404295490,1770042641747,-500.0,0.00015473,2]
[404295491,1770042641756,-500.0,0.00015473,2]
[404295492,1770042641766,-565.00011393,0.00015473,2]
[404295493,1770042641775,-500.0,0.00015473,2]
[404295494,1770042641786,-500.0,0.00015473,2]
[404295495,1770042641796,-500.0,0.00015473,2]
[404295496,1770042641805,-500.0,0.00015473,2]
[404295497,1770042641814,-500.0,0.00015473,2]
[404295498,1770042641824,-500.0,0.00015473,2]
[404295499,1770042641834,-500.0,0.00015473,2]
[404295500,1770042641844,-500.0,0.00015473,2]
[404295501,1770042641854,-500.0,0.00015473,2]
[404295502,1770042641863,-250.0,0.00015473,2]
[404295503,1770042641872,-1129.60682712,0.00015473,2]
[404295504,1770042641881,-823.0,0.00015504,2]
[404295505,1770042641891,-328.38,0.00015572,2]
[404295506,1770042641900,-3292.0,0.00015584,2]
[404295507,1770042641909,-2000.0,0.00015616,2]
[404295508,1770042641918,-159.65843549,0.00015679,2]
[404295509,1770042641927,-4939.22,0.00015742,2]
[404295510,1770042641936,-2554.65451949,0.00015837,2]
[404295511,1770042641946,-21608.85344204,0.00015837,2]
[404295512,1770042641955,-1000.0,0.00015918,2]
[404295513,1770042641964,-166.66,0.0001594,2]
[404295514,1770042641974,-956.83032625,0.00016,2]
[404295515,1770042641983,-270.91542523,0.00016,2]
[404295516,1770042641996,-421.15115649,0.00016,2]
[404295517,1770042642006,-73994.14576318,0.00016,4]
[404295518,1770042642015,-200.0,0.00016,2]
[404295519,1770042642193,-269.8904873,0.00016021,2]
[404295520,1770042642202,-500.0,0.00016021,2]
[404295521,1770042642211,-1000.0,0.00016021,2]
[404295522,1770042642220,-1003.70343212,0.00016021,2]
[404295523,1770042642229,-1000.0,0.00016021,2]
[404295524,1770042642241,-987.41342802,0.00016021,2]
[404295525,1770042642251,-1000.0,0.00016021,2]
[404295526,1770042642260,-1000.0,0.00016021,2]
[404295527,1770042642269,-1036.85123149,0.00016021,2]
[404295528,1770042642278,-1000.0,0.00016021,2]
[404295529,1770042642287,-503.32803614,0.00016021,2]
[404295530,1770042642296,-1000.0,0.00016021,2]
[404295531,1770042642305,-1000.0,0.00016021,2]
[404295532,1770042642314,-500.0,0.00016021,2]
[404295533,1770042642324,-787.5401961,0.00016021,2]
[404295534,1770042642333,-1000.0,0.00016021,2]
[404295535,1770042642342,-326.63399032,0.00016021,2]
[404295536,1770042642351,-1000.0,0.00016021,2]
[404295537,1770042642360,-540.54063963,0.00016021,2]
[404295538,1770042642369,-343.37022852,0.00016021,2]
[404295539,1770042642378,-582.33207666,0.00016021,2]
[404295540,1770042642387,-1000.0,0.00016021,2]
[404295541,1770042642396,-500.0,0.00016021,2]
[404295542,1770042642405,-1000.0,0.00016021,2]
[404295543,1770042642414,-1000.0,0.00016021,2]
[404295544,1770042642423,-500.0,0.00016021,2]
[404295545,1770042642432,-1000.0,0.00016021,2]
[404295546,1770042642441,-1000.0,0.00016021,2]
[404295547,1770042642451,-385.68955508,0.00016021,2]
[404295548,1770042642460,-194.71422031,0.00016021,2]
[404295549,1770042642470,-1000.0,0.00016021,2]
[404295550,1770042642479,-908.63714551,0.00016021,2]
[404295551,1770042642493,-500.40903786,0.00016021,2]
[404295552,1770042642502,-1000.0,0.00016021,2]
[404295553,1770042642511,-371.34493106,0.00016021,2]
[404295554,1770042642520,-1000.0,0.00016021,2]
[404295555,1770042642529,-1000.0,0.00016021,2]
[404295556,1770042642538,-1000.0,0.00016021,2]
[404295557,1770042642547,-500.0,0.00016021,2]
[404295558,1770042642556,-1000.0,0.00016021,2]
[404295559,1770042642566,-313.19566255,0.00016131,2]
[404295560,1770042642575,-1165.35985631,0.00016164,2]
[404295561,1770042642584,-5000.00385472,0.000162,5]
[404295562,1770042642593,-270.94,0.00016207,2]
[404295563,1770042642603,-159.65843549,0.00016282,2]
[404295564,1770042642612,-3240.0,0.00016341,2]
[404295565,1770042642621,-150.0,0.00016395,2]
[404295566,1770042642630,-839.0,0.000164,2]
[404295567,1770042642640,-1894.56667805,0.00016438,2]
[404295568,1770042642650,-166.66,0.00016467,2]
[404295569,1770042642660,-150.0,0.00016473,2]
[404295570,1770042642669,-500.0,0.00016473,2]
[404295571,1770042642678,-164.46513231,0.00016473,2]
[404295572,1770042642688,-1000.0,0.00016515,2]
[404295573,1770042642698,-2554.65451949,0.00016524,2]
[404295574,1770042642709,-21608.85344204,0.00016524,2]
[404295575,1770042642718,-4939.22,0.00016529,2]
[404295576,1770042642727,-501.04497332,0.00016568,2]
[404295577,1770042642741,-1500.0,0.00016568,2]
[404295578,1770042642750,-1500.0,0.00016568,2]
[404295579,1770042642759,-501.51663727,0.00016568,2]
[404295580,1770042642768,-500.0,0.00016568,2]
[404295581,1770042642779,-263.57582064,0.00016568,2]
[404295582,1770042642788,-1001.43163729,0.00016568,2]
[404295583,1770042642797,-500.0,0.00016568,2]
[404295584,1770042642806,-500.0,0.00016568,2]
[404295585,1770042642815,-1500.0,0.00016568,2]
[404295586,1770042642824,-1078.63346181,0.00016568,2]
[404295587,1770042642833,-1501.31050168,0.00016568,2]
[404295588,1770042642842,-1500.0,0.00016568,2]
[404295589,1770042642852,-1500.0,0.00016568,2]
[404295590,1770042642861,-503.42877829,0.00016568,2]
[404295591,1770042642870,-398.81271673,0.00016568,2]
[404295592,1770042642879,-1501.09498552,0.00016568,2]
[404295593,1770042642888,-382.63613861,0.00016568,2]
[404295594,1770042642897,-1500.0,0.00016568,2]
[404295595,1770042642906,-172.53,0.00016678,2]
[404295596,1770042642916,-152.4,0.00016712,2]
[404295597,1770042642925,-500.0,0.00016802,2]
[404295598,1770042642935,-500.0,0.00016802,2]
[404295599,1770042642944,-500.0,0.00016882,2]
[404295600,1770042642953,-159.65843549,0.00016885,2]
[404295601,1770042642963,-166.66,0.00016993,2]
[404295602,1770042642972,-2205.73614126,0.00017,3]
[404295603,1770042642983,-538090.51837794,0.00017,2]
[404295604,1770042642996,-300.0,0.00017,2]
[404295605,1770042643005,-313.19566255,0.00017016,2]
[404295606,1770042643015,-300.0,0.00017021,2]
[404295607,1770042643024,-1022.8234433,0.00017021,2]
[404295608,1770042643034,-1152.0,0.00017025,2]
[404295609,1770042643043,-322.6107,0.00017099,2]
[404295610,1770042643053,-209.40437684,0.00017099,2]
[404295611,1770042643062,-209.40437684,0.00017099,2]
[404295612,1770042643071,-500.0,0.00017099,2]
[404295613,1770042643081,-500.0,0.00017099,2]
[404295614,1770042643091,-250.0,0.00017099,2]
[404295615,1770042643101,-500.0,0.00017099,2]
[404295616,1770042643110,-317.3738203,0.00017099,2]
[404295617,1770042643119,-500.0,0.00017099,2]
[404295618,1770042643128,-500.0,0.00017099,2]
[404295619,1770042643138,-500.0,0.00017099,2]
[404295620,1770042643147,-250.0,0.00017099,2]
[404295621,1770042643156,-500.0,0.00017099,2]
[404295622,1770042643165,-250.0,0.00017099,2]
[404295623,1770042643175,-500.0,0.00017099,2]
[404295624,1770042643184,-250.0,0.00017099,2]
[404295625,1770042643194,-500.0,0.00017099,2]
[404295626,1770042643203,-500.0,0.00017099,2]
[404295627,1770042643213,-500.0,0.00017099,2]
[404295628,1770042643222,-250.0,0.00017099,2]
[404295629,1770042643231,-174.61919141,0.00017099,2]
[404295630,1770042643244,-250.0,0.00017099,2]
[404295631,1770042643254,-250.0,0.00017099,2]
[404295632,1770042643263,-250.0,0.00017099,2]
[404295633,1770042643273,-250.0,0.00017099,2]
[404295634,1770042643282,-250.0,0.00017099,2]
[404295635,1770042643291,-166.20200611,0.00017099,2]
[404295636,1770042643300,-859.80605061,0.00017099,2]
[404295637,1770042643309,-250.0,0.00017099,2]
[404295638,1770042643318,-250.0,0.00017099,2]
[404295639,1770042643327,-721.12765535,0.00017099,2]
[404295640,1770042643337,-250.0,0.00017099,2]
[404295641,1770042643346,-250.0,0.00017099,2]
[404295642,1770042643355,-1428.38747117,0.00017099,2]
[404295643,1770042643364,-250.0,0.00017099,2]
[404295644,1770042643373,-250.0,0.00017099,2]
[404295645,1770042643383,-249.0234262,0.00017099,2]
[404295646,1770042643392,-578.20924308,0.00017099,2]
[404295647,1770042643401,-250.0,0.00017099,2]
[404295648,1770042643410,-209.40437684,0.00017099,2]
[404295649,1770042643420,-900.0,0.00017104,2]
[404295650,1770042643429,-1000.0,0.00017112,2]
[404295651,1770042643438,-2000.0,0.00017116,2]
[404295652,1770042643447,-2000.0,0.00017116,2]
[404295653,1770042643456,-1761.11407335,0.00017116,2]
[404295654,1770042643466,-503.56470175,0.00017116,2]
[404295657,1770042643475,-1003.30357537,0.00017116,2]
[404295659,1770042643484,-2000.0,0.00017116,2]
[404295661,1770042643497,-4609.0,0.00017143,2]
[404295663,1770042643507,-732.21559852,0.00017146,2]
[404295664,1770042643516,-217.15233878,0.00017154,2]
[404295667,1770042643525,-225.18697532,0.00017209,2]
[404295669,1770042643535,-2554.65451949,0.00017212,2]
[404295671,1770042643544,-21608.85344204,0.00017212,2]
[404295673,1770042643554,-1000.0,0.0001726,2]
[404295675,1770042643563,-233.51889341,0.00017264,2]
[404295677,1770042643573,-500.0,0.00017288,2]
[404295678,1770042643582,-4939.22,0.00017317,2]
[404295679,1770042643591,-242.15909246,0.00017319,2]
[404295680,1770042643600,-2877.0,0.0001736,2]
[404295681,1770042643610,-200.0,0.00017365,2]
[404295682,1770042643619,-251.11897888,0.00017374,2]
[404295683,1770042643629,-5321.0,0.00017376,2]
[404295684,1770042643638,-1500.0,0.000174,2]
[404295685,1770042643647,-260.4103811,0.00017429,2]
[404295686,1770042643657,-270.0455652,0.00017484,2]
[404295687,1770042643666,-159.65843549,0.00017488,2]
[404295688,1770042643678,-13442.50995431,0.000175,2]
[404295689,1770042643687,-166.66,0.00017519,2]
[404295690,1770042643700,-5888.0,0.00017533,2]
[404295691,1770042643709,-1000.0,0.00017534,2]
[404295692,1770042643719,-280.03725112,0.00017539,2]
[404295693,1770042643728,-450.0,0.00017568,2]
[404295694,1770042643741,-408.0,0.00017576,2]
[404295695,1770042643751,-264.6708958,0.00017586,2]
[404295696,1770042643761,-196.73,0.00017586,2]
[404295697,1770042643770,-27332.8520701,0.00017592,2]
[404295698,1770042643779,-290.39862941,0.00017594,2]
[404295699,1770042643788,-1500.0,0.000176,2]
[404295700,1770042643797,-274.75743456,0.00017615,2]
[404295701,1770042643807,-6961.53879567,0.00017629,2]
[404295702,1770042643816,-1918.94815528,0.0001764,2]
[404295703,1770042643826,-217.15233878,0.00017647,2]
[404295704,1770042643835,-217.15233878,0.00017647,2]
[404295705,1770042643844,-181.08010149,0.00017647,2]
[404295706,1770042643853,-891.61887448,0.00017647,2]
[404295707,1770042643863,-1481.23780761,0.00017647,2]
[404295708,1770042643873,-301.1433787,0.00017649,2]
[404295709,1770042643882,-1932.69026087,0.00017664,2]
[404295710,1770042643891,-2250.14829239,0.00017664,2]
[404295711,1770042643900,-2500.0,0.00017664,2]
[404295712,1770042643909,-163.0,0.0001768,2]
[404295713,1770042643918,-3881.0,0.00017698,2]
[404295714,1770042643927,-150.0,0.00017698,2]
[404295715,1770042643936,-1000.0,0.00017709,2]
[404295716,1770042643946,-5888.0,0.00017711,2]
[404295717,1770042643956,-408.0,0.00017747,2]
[404295718,1770042643965,-388.0,0.00017747,2]
[404295719,1770042643974,-3881.0,0.00017753,2]
[404295720,1770042643983,-150.0,0.00017753,2]
[404295721,1770042643995,-390.0,0.00017774,2]
[404295722,1770042644005,-390.0,0.00017775,2]
[404295723,1770042644015,-2844.0,0.000178,2]
[404295724,1770042644025,-502.14782899,0.000178,3]
[404295725,1770042644034,-373.0,0.00017804,2]
[404295726,1770042644044,-376.0,0.00017807,2]
[404295727,1770042644053,-3881.0,0.00017808,2]
[404295728,1770042644062,-200.0,0.00017808,2]
[404295729,1770042644072,-500.0,0.00017808,2]
[404295730,1770042644081,-1000.0,0.00017808,2]
[404295731,1770042644091,-163.0,0.00017815,2]
[404295732,1770042644100,-356.0,0.00017826,2]
[404295733,1770042644109,-392.0,0.00017856,2]
[404295734,1770042644119,-200.0,0.00017856,2]
[404295735,1770042644128,-3881.0,0.00017862,2]
[404295736,1770042644138,-500.0,0.00017863,2]
[404295737,1770042644147,-385.0,0.00017867,2]
[404295738,1770042644156,-390.0,0.00017894,2]
[404295739,1770042644166,-2554.65451949,0.000179,2]
[404295740,1770042644175,-21608.85344204,0.000179,2]
[404295741,1770042644184,-313.19566255,0.000179,2]
[404295742,1770042644193,-12462.0,0.000179,2]
[404295743,1770042644203,-1000.0,0.00017914,2]
[404295744,1770042644212,-3881.0,0.00017917,2]
[404295745,1770042644221,-500.0,0.00017918,2]
[404295746,1770042644230,-213.0,0.00017927,2]
[404295747,1770042644243,-390.0,0.00017928,2]
[404295748,1770042644252,-449.74128292,0.00017936,2]
[404295749,1770042644261,-386.0,0.00017965,2]
[404295750,1770042644271,-456.738324,0.00017965,2]
[404295751,1770042644280,-500.0,0.0001797,2]
[404295752,1770042644289,-1000.0,0.0001797,2]
[404295753,1770042644299,-600.0,0.0001797,2]
[404295754,1770042644308,-1000.0,0.0001797,2]
[404295755,1770042644317,-1000.0,0.0001797,2]
[404295756,1770042644326,-1000.0,0.0001797,2]
[404295757,1770042644335,-1000.0,0.0001797,2]
[404295758,1770042644344,-1050.00094472,0.0001797,2]
[404295759,1770042644354,-3881.0,0.00017972,2]
[404295760,1770042644363,-546.08935447,0.00017972,2]
[404295761,1770042644372,-390.0,0.00017976,2]
[404295762,1770042644381,-256.0,0.00017977,2]
[404295763,1770042644390,-18407.9561653,0.00017978,2]
[404295764,1770042644399,-390.0,0.00017984,2]
[404295765,1770042644408,-5420.83509586,0.0001799,3]
[404295766,1770042644418,-134418.192222,0.00017992,2]
[404295767,1770042644427,-1603.2981065,0.00017992,2]
[404295768,1770042644436,-5888.0,0.00017993,2]
[404295769,1770042644445,-386.0,0.00017994,2]
[404295770,1770042644454,-203.09061065,0.00017999,2]
[404295771,1770042644463,-300.0,0.00017999,2]
[404295772,1770042644473,-300.0,0.00017999,2]
[404295773,1770042644481,-300.0,0.00017999,2]
[404295774,1770042644493,-378.39836079,0.00017999,2]
[404295775,1770042644502,-300.0,0.00017999,2]
[404295776,1770042644556,-187.19004078,0.00017999,2]
[404295777,1770042644565,-300.0,0.00017999,2]
[404295778,1770042644575,-300.0,0.00017999,2]
[404295779,1770042644584,-1000.0,0.00018,2]
[404295780,1770042644593,-1000.0,0.00018,2]
[404295781,1770042644603,-1000.0,0.00018,2]
[404295782,1770042644612,-1000.0,0.00018,2]
[404295783,1770042644622,-1000.0,0.00018,2]
[404295784,1770042644631,-1000.0,0.00018,2]
[404295785,1770042644640,-1000.0,0.00018,2]
[404295786,1770042644650,-1000.0,0.00018,2]
[404295787,1770042644659,-1000.0,0.00018,2]
[404295788,1770042644668,-1000.0,0.00018,2]
[404295789,1770042644677,-1000.0,0.00018,2]
[404295790,1770042644685,-1000.0,0.00018,2]
[404295791,1770042644695,-1000.0,0.00018,2]
[404295792,1770042644705,-1000.0,0.00018,2]
[404295793,1770042644716,-1000.0,0.00018,2]
[404295794,1770042644725,-1000.0,0.00018,2]
[404295795,1770042644734,-1000.0,0.00018,2]
[404295796,1770042644748,-1000.0,0.00018,2]
[404295797,1770042644757,-1000.0,0.00018,2]
[404295798,1770042644766,-1000.0,0.00018,2]
[404295799,1770042644776,-1000.0,0.00018,2]
[404295800,1770042644787,-1000.0,0.00018,2]
[404295801,1770042644796,-1000.0,0.00018,2]
[404295802,1770042644805,-1141.04007611,0.00018,2]
[404295803,1770042644815,-500.0,0.00018,2]
[404295804,1770042644824,-5800.0,0.00018,2]
[404295805,1770042644834,-160.9903315,0.00018,2]
[404295806,1770042644843,-1000.0,0.00018,2]
[404295807,1770042644852,-1000.0,0.00018,2]
[404295808,1770042644861,-1000.0,0.00018,2]
[404295809,1770042644870,-1000.0,0.00018,2]
[404295810,1770042644880,-1000.0,0.00018,2]
[404295811,1770042644889,-1000.0,0.00018,2]
[404295812,1770042644897,-1000.0,0.00018,2]
[404295813,1770042644906,-1116.44,0.00018,2]
[404295814,1770042644915,-189.98558182,0.00018,2]
[404295815,1770042644923,-269006.051374,0.00018,2]
[404295816,1770042644932,-150.0,0.00018,2]
[404295817,1770042644941,-1284.16393121,0.00018,2]
[404295818,1770042644950,-200.0,0.00018,2]
[404295819,1770042644959,-2348.91140711,0.00018,2]
[404295820,1770042644968,-150.0,0.00018,7]
[404295821,1770042644977,-5800.0,0.00018,2]
[404295822,1770042644986,-264.0,0.00018,2]
[404295823,1770042645003,-1274.693,0.00018,2]
[404295824,1770042645012,-297.6689898,0.00018,2]
[404295825,1770042645021,-339.85293807,0.00018,2]
[404295826,1770042645030,-341.63207322,0.00018,2]
[404295827,1770042645040,-200.0,0.00018,2]
[404295828,1770042645049,-150.0,0.00018,2]
[404295829,1770042645058,-456.03157398,0.00018,2]
[404295830,1770042645067,-1727336.00051723,0.00018,2]
[404295831,1770042645331,-653.76080498,0.00018,2]
[404295832,1770042645351,-395.31144231,0.00018,2]
[404295837,1770042645392,-422.28753396,0.00018,2]
[404295884,1770042736721,-1000.0,0.0001171,2]
[404295885,1770042736738,-495.2496335,0.00012509,2]
[404295886,1770042736753,-204614.72490228,0.00018,2]
[404295933,1770042831618,510.93090397,0.0001161,2]
[404295934,1770042831936,630.5579999,0.0001161,2]
[404295935,1770042834706,630.5579999,0.0001161,2]
[404295942,1770042919610,1503.0,0.000209,30]
[404295943,1770042920224,1503.0,0.000209,30]
[404295944,1770042920375,159.35631536,0.000209,30]
[404295945,1770042921102,1503.0,0.000209,30]
[404295946,1770042921833,1503.0,0.000209,30]
[404295947,1770042922601,1503.0,0.000209,30]
[404295948,1770042923593,151.0,0.000209,30]
[404295949,1770042923663,1503.0,0.000209,30]
[404295950,1770042924452,1503.0,0.000209,30]
[404295951,1770042924527,151.0,0.000209,30]
[404295952,1770042925293,1503.0,0.000209,30]
[404295953,1770042925562,151.0,0.000209,30]
[404295954,1770042926127,1503.0,0.000209,30]
[404295955,1770042928110,151.0,0.000209,30]
[404295956,1770042928564,1503.0,0.000209,30]
[404295957,1770042929065,151.0,0.000209,30]
[404295958,1770042929424,1503.0,0.000209,30]
[404295959,1770042930231,1503.0,0.000209,30]
[404295960,1770042930286,151.0,0.000209,30]
[404295961,1770042931097,1503.0,0.000209,30]
[404295963,1770042931348,151.0,0.000209,30]
[404295964,1770042932060,1503.0,0.000209,30]
[404295965,1770042932815,151.0,0.000209,30]
[404295966,1770042932867,1503.0,0.000209,30]
[404295967,1770042934075,1503.0,0.000209,30]
[404295968,1770042934142,151.0,0.000209,30]
[404295969,1770042934322,1503.0,0.000209,30]
[404295970,1770042934869,188.6326235,0.000209,30]
[404295971,1770042935215,1503.0,0.000209,30]
[404295972,1770042935976,1503.0,0.000209,30]
[404295973,1770042936788,1503.0,0.000209,30]
[404295974,1770042937574,1503.0,0.000209,30]
[404295975,1770042938600,1503.0,0.000209,30]
[404295976,1770042940090,1503.0,0.000209,30]
[404295977,1770042940816,1503.0,0.000209,30]
[404295978,1770042941650,379.46185388,0.000209,30]
[404296008,1770042977114,472.91849989,0.00011609,2]
[404296024,1770043000910,1764.54532932,0.00011609,2]
[404296025,1770043000934,5000.01,0.00011609,2]
[404296026,1770043000956,5000.01,0.00011609,2]
[404296027,1770043000978,5000.01,0.00011609,2]
[404296028,1770043001001,3946.28885248,0.00011609,2]
[404296034,1770043077411,157.63949996,0.00011609,2]
[404296038,1770043108626,334.98393745,0.00011609,2]
[404296043,1770043148142,561.09771011,0.00011609,2]
[404296044,1770043148167,66.51566005,0.00011609,2]
[404296045,1770043195896,4933.49433995,0.00011608,2]
[404296046,1770043195921,5000.01,0.00011608,2]
[404296047,1770043195945,66.49566005,0.00011608,2]
[404296048,1770043217810,2248.09597718,0.0001161,2]
[404296050,1770043292860,2685.41836277,0.00011474,2]
[404296051,1770043292886,244.90063723,0.00011474,2]
[404296052,1770043292934,157.224,0.00011474,2]
[404296053,1770043308664,2500.0,0.00011608,2]
[404296055,1770043354997,653.10723518,0.0001161,2]
[404296056,1770043358676,653.10723518,0.0001161,2]
[404296057,1770043382909,171.4,9.838e-05,2]
[404296059,1770043407394,-246.0,0.00011681,2]
[404296060,1770043407417,-123.0,0.00011681,2]
[404296061,1770043417990,620.27089241,0.00011607,2]
[404296062,1770043418018,5000.01,0.00011607,2]
[404296063,1770043428088,-990.49926702,0.00011607,2]
[404296064,1770043429422,-5000.01,0.00011607,2]
[404296065,1770043429549,-5000.01,0.00011607,2]
[404296066,1770043429676,-5000.01,0.00011607,2]
[404296067,1770043429796,-5000.01,0.00011607,2]
[404296068,1770043429922,-5000.01,0.00011607,2]
[404296069,1770043430049,-5000.01,0.00011607,2]
[404296070,1770043430172,-5000.01,0.00011607,2]
[404296071,1770043430301,-5000.01,0.00011607,2]
[404296072,1770043430434,-5000.01,0.00011607,2]
[404296073,1770043432462,-5000.01,0.00011607,2]
[404296074,1770043435615,-5000.01,0.00011607,2]
[404296075,1770043435804,-5000.01,0.00011607,2]
[404296076,1770043435922,-5000.01,0.00011607,2]
[404296077,1770043436113,-5000.01,0.00011607,2]
[404296078,1770043436272,-5000.01,0.00011607,2]
[404296079,1770043436390,-5000.01,0.00011607,2]
[404296080,1770043438753,-5000.01,0.00011607,2]
[404296081,1770043487435,150.29,1.6e-05,2]
[404296083,1770043505997,489.83042642,0.00011508,2]
[404296084,1770043509334,489.83042642,0.00011508,2]
[404296085,1770043510300,160.0,1.56e-05,2]
[404296086,1770043511217,3710.05914716,0.00011508,2]
[404296087,1770043511243,5000.01,0.00011508,2]
[404296088,1770043511268,5000.01,0.00011508,2]
[404296089,1770043511296,5000.01,0.00011508,2]
[404296090,1770043511322,514.14665733,0.00011508,2]
[404296091,1770043521163,-1200.0,0.00011605,2]
[404296092,1770043521196,-300.0,0.00011605,2]
[404296093,1770043521225,-300.0,0.00011605,2]
[404296094,1770043521253,-150.0,0.00011605,2]
[404296095,1770043521283,-500.0,0.00011606,2]
[404296096,1770043521502,-186.15795245,0.00011606,2]
[404296097,1770043521531,-380.74601133,0.00011606,2]
[404296098,1770043521561,-364.58912045,0.00011606,2]
[404296099,1770043521589,-164.54508129,0.00011606,2]
[404296100,1770043521618,-500.0,0.00011606,2]
[404296101,1770043521647,-500.0,0.00011606,2]
[404296102,1770043521677,-307.93366896,0.00011606,2]
[404296103,1770043521728,-192.06633104,0.00011606,2]
[404296104,1770043521758,-287.50072672,0.00011606,2]
[404296105,1770043521792,-500.0,0.00011606,2]
[404296106,1770043521826,-500.0,0.00011606,2]
[404296107,1770043521860,-500.0,0.00011606,2]
[404296108,1770043521893,-500.0,0.00011606,2]
[404296109,1770043522099,-500.0,0.00011606,2]
[404296110,1770043522173,-500.0,0.00011606,2]
[404296111,1770043522210,-500.0,0.00011606,2]
[404296112,1770043522244,-500.0,0.00011606,2]
[404296113,1770043522277,-500.0,0.00011606,2]
[404296114,1770043522554,-500.0,0.00011606,2]
[404296115,1770043522587,-500.0,0.00011606,2]
[404296116,1770043522620,-500.0,0.00011606,2]
[404296117,1770043522653,-500.0,0.00011606,2]
[404296118,1770043522687,-500.0,0.00011606,2]
[404296119,1770043522742,-500.0,0.00011606,2]
[404296120,1770043522775,-500.0,0.00011606,2]
[404296121,1770043522808,-500.0,0.00011606,2]
[404296122,1770043522844,-500.0,0.00011606,2]
[404296123,1770043522878,-500.0,0.00011606,2]
[404296124,1770043523009,-500.0,0.00011606,2]
[404296125,1770043523043,-500.0,0.00011606,2]
[404296126,1770043523076,-500.0,0.00011606,2]
[404296127,1770043523110,-500.0,0.00011606,2]
[404296128,1770043523145,-500.0,0.00011606,2]
[404296129,1770043523272,-500.0,0.00011606,2]
[404296130,1770043523306,-197.37928467,0.00011606,2]
[404296131,1770043523341,-500.0,0.00011606,2]
[404296132,1770043523376,-500.0,0.00011606,2]
[404296133,1770043523411,-500.0,0.00011606,2]
[404296134,1770043523447,-105.25143066,0.00011606,2]
[404296135,1770043523544,-394.74856934,0.00011606,2]
[404296136,1770043523580,-500.0,0.00011606,2]
[404296137,1770043523619,-500.0,0.00011606,2]
[404296138,1770043523655,-500.0,0.00011606,2]
[404296139,1770043523689,-450.0,0.00011606,2]
[404296140,1770043523772,-500.0,0.00011606,2]
[404296141,1770043523808,-500.0,0.00011606,2]